[Event "45th FIDE Womens Olympiad 2024"]
[Site "Budapest"]
[Date "2024.09.11"]
[Round "1.1"]
[White "Clarke, Adani"]
[Black "Vaishali, Rameshbabu"]
[Result "0-1"]
[ECO "E14"]
[WhiteElo "1919"]
[BlackElo "2498"]
[Annotator "TA"]
[PlyCount "58"]
[EventDate "2024.09.05"]
[EventType "team-tourn"]
[EventCountry "HUN"]
[SourceTitle "playchess.com"]
[Source "ChessBase"]
[SourceQuality "1"]
[WhiteTeam "Jamaica"]
[BlackTeam "India"]
[WhiteTeamCountry "JAM"]
[BlackTeamCountry "IND"]
[TimeControl "40/5400+30:1800+30"]

{[%evp 17,58,0,0,0,0,0,0,0,0,0,0,0,1,0,0,-16,-9,-25,-12,-17,-24,-41,-41,-45,-35,-36,0,-139,-137,-140,-139,-134,-118,-129,-31,-395,-358,-654,-634,-29991,-29992,-29996,-29997]} 1. d4 {[%emt 0:00:01]} Nf6 {[%emt 0:00:14]} 2. c4 {[%emt 0:00:11]} e6 {[%emt 0:00:06]} 3. e3 {[%emt 0:00:46]} d5 {[%emt 0:01:08]} 4. Nf3 {[%emt 0:01:22]} a6 {[%emt 0:02:50]} 5. Qc2 {[%emt 0:02:46]} b6 {[%emt 0:08:16]} 6. Nc3 {[%emt 0:05:01]} Bb7 {[%emt 0:00:31]} 7. cxd5 {[%emt 0:03:59]} exd5 {[%emt 0:00:07]} 8. Bd3 {[%emt 0:02:24]} Bd6 {[%emt 0:03:10]} 9. O-O {[%emt 0:02:50]} O-O {[%emt 0:05:12]} 10. e4 {[%emt 0:12:48]} dxe4 {[%emt 0:00:12]} 11. Nxe4 {[%emt 0:00:12]} Bxe4 {[%emt 0:00:59]} 12. Bxe4 {[%emt 0:00:20] The position is equal.} Nxe4 {[%emt 0:00:16]} 13. Qxe4 {[%emt 0:00:08]} Nd7 {[%emt 0:00:07]} 14. Bg5 {[%emt 0:11:17]} Qe8 {[%emt 0:15:00]} 15. Qc6 {[%emt 0:07:05]} Qe6 {[%emt 0:03:13][%cal Od6h2]} 16. Kh1 {[%emt 0:10:44]} Rae8 {[%emt 0:11:01]} 17. Rfe1 {[%emt 0:06:50]} Nb8 {[%emt 0:03:02][%cal Bd7b8,Bb8c6,Bc6a5,Ba5b3,Bb3d4,Bd4e2][%mdl 32]} 18. Qc3 {[%emt 0:04:56]} Qd5 {[%emt 0:01:06]} 19. a3 {[%emt 0:06:14]} h6 {[%emt 0:08:11]} 20. Bd2 {[%emt 0:06:43]} Nc6 {[%emt 0:01:36]} 21. Rac1 {[%emt 0:02:23] And now Rxe8 would win.} Na5 {[%emt 0:09:48]} (21... Rxe1+ {simplifies} 22. Bxe1 Ne7 23. Bd2 Re8) 22. Ne5 {[%emt 0:01:58]} (22. Re3 $11 {remains equal.}) 22... Nb3 $17 {[%emt 0:03:42][%cal Ob3d2] Hoping for ...Nxd2!} 23. Rcd1 {[%emt 0:01:18]} Nxd4 {[%emt 0:04:37]} 24. Nc4 {[%emt 0:06:47]} Ne2 {[%emt 0:04:16] Black is more active.} 25. Qc2 {[%emt 0:01:02] [#]} Bxh2 $40 {[%emt 0:04:19][%mdl 128] Black attacks.} 26. Bf4 $2 {[%emt 0:02:11][%mdl 8192] [#] This move loses the game for White.} Nd4 $1 $19 {[%emt 0:04:09]} (26... Nxf4 27. Rxd5 Rxe1+ 28. Kxh2 Nxd5 29. Qd2 $18) 27. Rxe8 {[%emt 0:00:43]} (27. Ne3 Nxc2 (27... Bxf4 $2 28. Nxd5 Rxe1+ 29. Rxe1 $19) 28. Rxd5 Nxe1 29. Kxh2) 27... Rxe8 {[%emt 0:00:11]} ({Not} 27... Bxf4 28. Rxf8+ Kxf8 29. Kg1 $11) 28. Qc1 {[%emt 0:00:59]} Bxf4 {[%emt 0:00:13]} 29. Qxf4 {[%emt 0:00:29]} Qh5+ {[%emt 0:00:04] Weighted Error Value: White=0.72/Black=0.11 (very precise) .  Loses game:     	White=1     	---        Mistake:       	White=2     	Black=1      Inaccurate:     	White=1     	Black=1      OK:         	White=5     	Black=7      Best:        	---       	Black=1      Strong:       	---       	Black=1} 0-1

[Event "45th FIDE Womens Olympiad 2024"]
[Site "Budapest"]
[Date "2024.09.11"]
[Round "1.2"]
[White "Divya Deshmukh"]
[Black "Miller, Rachel"]
[Result "1-0"]
[ECO "D31"]
[WhiteElo "2483"]
[BlackElo "1912"]
[Annotator "TA"]
[PlyCount "151"]
[EventDate "2024.09.05"]
[EventType "team-tourn"]
[EventCountry "HUN"]
[SourceTitle "playchess.com"]
[Source "ChessBase"]
[SourceQuality "1"]
[WhiteTeam "India"]
[BlackTeam "Jamaica"]
[WhiteTeamCountry "IND"]
[BlackTeamCountry "JAM"]
[TimeControl "40/5400+30:1800+30"]

{[%evp 9,151,14,7,13,7,-3,16,14,23,22,16,17,6,26,23,21,33,27,37,29,19,25,22,23,16,27,37,23,25,23,34,23,32,23,22,18,30,29,43,14,16,19,38,13,27,13,22,13,15,0,26,14,15,16,29,28,19,23,14,9,8,7,18,11,14,25,18,0,18,11,16,18,41,41,41,41,43,43,43,40,38,44,44,0,0,0,0,0,27,16,131,114,216,209,332,332,303,279,419,371,479,504,503,504,496,458,1157,1150,1140,1110,1072,1025,1247,1266,1380,1314,2674,2190,1666,1932,6877,5816,7104,5650,7210,7135,5423,5401,29977,29978,29979,29979,29979,29980,29982,29982,29982,29982,29983,29984,29988,29989,29990,29986]} 1. c4 {[%emt 0:00:05]} e6 {[%emt 0:00:13]} 2. Nc3 {[%emt 0:00:11]} d5 {[%emt 0:00:18]} 3. d4 {[%emt 0:00:04]} a6 {[%emt 0:00:19]} 4. cxd5 {[%emt 0:00:08]} exd5 {[%emt 0:00:13]} 5. Qb3 {[%emt 0:00:04]} c5 {[%emt 0:00:42]} 6. Qxd5 {[%emt 0:00:14] D31: Queen's Gambit Declined: Semi-Slav without ...Nf6 (+ Marshall Gambit and Noteboom) and Exchange Variation lines without ...Nf6.} cxd4 {[%emt 0:00:31]} 7. Qxd8+ {[%emt 0:00:05]} Kxd8 {[%emt 0:00:07]} 8. Nd5 {[%emt 0:00:02]} Be6 {[%emt 0:00:10]} 9. Nf4 {[%emt 0:00:09]} Bb4+ {[%emt 0:00:05]} 10. Bd2 {[%emt 0:00:25]} Bxd2+ {[%emt 0:00:28]} 11. Kxd2 {[%emt 0:00:03]} Nf6 {[%emt 0:02:23]} 12. g3 {[%emt 0:00:15]} Nc6 {[%emt 0:02:46]} 13. Bg2 {[%emt 0:00:36]} Re8 {[%emt 0:00:44][%cal Bh8e8,Be8e4,Be4e5][%mdl 32]} 14. Ngh3 {[%emt 0:00:16]} Bxh3 {[%emt 0:00:11]} 15. Nxh3 {[%emt 0:00:05]} Ne4+ $146 {[%emt 0:00:07]} ({Predecessor:} 15... Kc7 16. Rac1 Ne4+ 17. Bxe4 Rxe4 18. Nf4 g5 19. Nd3 Rae8 20. Rhe1 Kd6 21. Rc4 b5 {½-½ Vidit,S (2718)-Rakhmanov,A (2606) FIDE World Cup 2019 (2.1)}) 16. Bxe4 {[%emt 0:00:40]} Rxe4 {[%emt 0:00:21]} 17. Rhc1 {[%emt 0:00:21]} h6 {[%emt 0:12:17]} 18. Rc5 {[%emt 0:02:41]} Kc7 {[%emt 0:02:10]} 19. Nf4 {[%emt 0:15:27]} Rae8 {[%emt 0:03:09]} 20. h4 {[%emt 0:00:46]} f6 {[%emt 0:23:36]} 21. h5 {[%emt 0:04:43]} R4e5 {[%emt 0:00:47]} 22. Rac1 {[%emt 0:04:02]} Kd6 {[%emt 0:00:46]} 23. R5c4 {[%emt 0:01:56]} Rb5 {[%emt 0:03:28]} 24. R1c2 {[%emt 0:01:30]} Ree5 {[%emt 0:07:05]} 25. a3 {[%emt 0:02:56]} Rg5 {[%emt 0:09:07]} 26. Kc1 {[%emt 0:05:18]} Ke7 {[%emt 0:09:23]} 27. Kb1 {[%emt 0:04:10]} Kd6 {[%emt 0:03:09]} 28. Ka2 {[%emt 0:00:14]} Ke7 {[%emt 0:03:31]} 29. Kb1 {[%emt 0:34:04]} Kd6 {[%emt 0:00:17]} 30. Rd2 {[%emt 0:00:56]} Ke7 {[%emt 0:00:23]} 31. Rc1 {[%emt 0:00:25]} Rb3 {[%emt 0:11:22]} 32. Ka2 {[%emt 0:04:32]} Rbb5 {[%emt 0:00:04]} 33. Rcd1 {[%emt 0:00:29]} Kf7 {[%emt 0:01:21]} 34. Rc2 {[%emt 0:02:08]} Ra5 {[%emt 0:00:17] Strongly threatening ...Nb4+.} 35. Kb1 {[%emt 0:00:58]} Rab5 {[%emt 0:00:21]} 36. Rd3 {[%emt 0:02:06]} Rbe5 {[%emt 0:00:37]} 37. Rcd2 {[%emt 0:02:40]} Re7 {[%emt 0:01:31]} 38. Ka2 {[%emt 0:04:33]} Ra5 {[%emt 0:00:45]} 39. Rb3 {[%emt 0:00:10] Prevents Nb4+.} Rg5 {[%emt 0:00:09]} 40. Rb6 {[%emt 0:00:37]} Rb5 {[%emt 0:02:04]} 41. Rxb5 {[%emt 0:30:05]} axb5 $14 {[%emt 0:30:03][%mdl 4096] Endgame. KRN-KRN} 42. Rc2 {[%emt 0:03:10]} Re5 {[%emt 0:02:59] Prevents Rc5.} 43. b4 {[%emt 0:00:39]} Ke8 {[%emt 0:00:00]} 44. Rd2 {[%emt 0:00:00]} Kf7 {[%emt 0:00:00]} 45. Kb3 {[%emt 0:00:00]} Ke8 {[%emt 0:00:00]} 46. a4 {[%emt 0:00:00]} bxa4+ {[%emt 0:00:00]} 47. Kxa4 {[%emt 0:00:00]} b5+ {[%emt 0:00:00]} 48. Kb3 {[%emt 0:00:00]} Kd7 {[%emt 0:00:00]} 49. e3 {[%emt 0:00:00]} Re4 {[%emt 0:00:00] [#]} (49... Kd6 $1 $11) 50. Ne2 $1 $16 {[%emt 0:00:11][%cal Re2d4]} Kc7 {[%emt 0:00:00]} (50... Re5 $16 {might work better.}) 51. Nxd4 $18 {[%emt 0:00:00] Rc2 is the strong threat.} (51. exd4 $2 {loses.} Rxe2 52. Rxe2 Nxd4+ 53. Kc3 Nxe2+ $19) 51... Nxd4+ {[%emt 0:00:00]} (51... Kb6 $142 52. Nc2 Ne7) 52. Rxd4 {[%emt 0:00:00] KR-KR} Re5 {[%emt 0:00:00]} 53. g4 {[%emt 0:00:00]} f5 {[%emt 0:00:00]} (53... Re8 {was called for.} 54. Kc3 Kc6) 54. Kc3 {[%emt 0:00:00]} Kc6 {[%emt 0:00:00]} 55. Kd3 {[%emt 0:00:00]} fxg4 {[%emt 0:00:00]} 56. Rxg4 {[%emt 0:00:00] And now Rg6+ would win.} Rd5+ {[%emt 0:00:00]} 57. Ke4 {[%emt 0:00:00] Black must now prevent Rg6+.} Rxh5 {[%emt 0:00:00]} (57... Rd7 $142 58. Rg6+ Kb7) 58. Rg6+ {[%emt 0:00:00]} Kd7 {[%emt 0:00:00]} 59. Rxg7+ {[%emt 0:00:00]} Ke6 {[%emt 0:00:00]} 60. f4 {[%emt 0:00:00]} Rh1 {[%emt 0:00:28]} 61. Rb7 {[%emt 0:00:00]} h5 {[%emt 0:00:07][%cal Bh6h5,Bh5h4][%mdl 32]} 62. Rxb5 {[%emt 0:00:00]} h4 {[%emt 0:00:04]} 63. Re5+ {[%emt 0:00:00]} Kf6 {[%emt 0:00:06]} 64. b5 {[%emt 0:00:00]} h3 {[%emt 0:00:08]} 65. Rh5 {[%emt 0:00:00]} Rb1 {[%emt 0:01:21]} 66. b6 {[%emt 0:00:00]} Kg6 {[%emt 0:00:06]} 67. Rxh3 {[%emt 0:00:00] aiming for f5+.} Rxb6 {[%emt 0:00:05]} 68. f5+ {[%emt 0:00:00]} Kf7 {[%emt 0:00:14]} 69. Rh7+ {[%emt 0:00:00]} Kf8 {[%emt 0:00:03]} 70. Rc7 {[%emt 0:00:00]} Ra6 {[%emt 0:00:07]} 71. Kf4 {[%emt 0:00:00]} Ra5 {[%emt 0:00:16]} 72. e4 {[%emt 0:00:00][%cal Be3e4,Be4e5,Be5e6][%mdl 32]} Ra1 {[%emt 0:00:08]} 73. Kg5 {[%emt 0:00:00]} Re1 {[%emt 0:00:42]} 74. Kf6 {[%emt 0:00:00][%cal Rc7c8]} Kg8 {[%emt 0:00:29]} 75. e5 {[%emt 0:00:00]} Rh1 {[%emt 0:00:40]} 76. e6 {[%emt 0:00:00]} 1-0

[Event "45th FIDE Womens Olympiad 2024"]
[Site "Budapest"]
[Date "2024.09.11"]
[Round "1.3"]
[White "Brown, Raehanna"]
[Black "Vantika Agrawal"]
[Result "1/2-1/2"]
[ECO "A22"]
[WhiteElo "1910"]
[BlackElo "2370"]
[Annotator "ChessBase"]
[PlyCount "105"]
[EventDate "2024.09.05"]
[EventType "team-tourn"]
[EventCountry "HUN"]
[SourceTitle "playchess.com"]
[Source "ChessBase"]
[SourceQuality "1"]
[WhiteTeam "Jamaica"]
[BlackTeam "India"]
[WhiteTeamCountry "JAM"]
[BlackTeamCountry "IND"]
[TimeControl "40/5400+30:1800+30"]

1. c4 {[%emt 0:00:02]} e5 {[%emt 0:00:39]} 2. Nc3 {[%emt 0:00:09]} Nf6 {[%emt 0:00:12]} 3. g3 {[%emt 0:00:26]} Bb4 {[%emt 0:01:54]} 4. Bg2 {[%emt 0:01:37]} O-O {[%emt 0:01:56]} 5. d3 {[%emt 0:04:19]} Re8 {[%emt 0:06:03]} 6. e4 {[%emt 0:05:34]} c6 {[%emt 0:03:28]} 7. Bg5 {[%emt 0:04:53]} h6 {[%emt 0:17:58]} 8. Bxf6 {[%emt 0:02:08]} Qxf6 {[%emt 0:02:17]} 9. Nge2 {[%emt 0:01:12]} d6 {[%emt 0:03:11]} 10. O-O {[%emt 0:02:09]} Na6 {[%emt 0:10:45]} 11. Qd2 {[%emt 0:14:51]} h5 {[%emt 0:08:23]} 12. Rad1 {[%emt 0:09:34]} h4 {[%emt 0:02:13]} 13. h3 {[%emt 0:04:52]} hxg3 {[%emt 0:08:00]} 14. fxg3 {[%emt 0:08:40]} Qe7 {[%emt 0:01:07]} 15. Kh2 {[%emt 0:10:35]} Nc5 {[%emt 0:06:18]} 16. a3 {[%emt 0:02:00]} Bxc3 {[%emt 0:00:15]} 17. Qxc3 {[%emt 0:00:46]} Qg5 {[%emt 0:05:37]} 18. d4 {[%emt 0:03:10]} exd4 {[%emt 0:02:28]} 19. Qxd4 {[%emt 0:00:59]} Re6 {[%emt 0:05:40]} 20. Rf5 {[%emt 0:10:23]} Qe7 {[%emt 0:01:20]} 21. Nf4 {[%emt 0:03:07]} Re5 {[%emt 0:03:13]} 22. Rxe5 {[%emt 0:00:57]} dxe5 {[%emt 0:00:10]} 23. Qd8+ {[%emt 0:00:05]} Qf8 {[%emt 0:02:40]} 24. Qc7 {[%emt 0:03:14]} Be6 {[%emt 0:05:33]} 25. Nxe6 {[%emt 0:02:17]} Nxe6 {[%emt 0:00:11]} 26. Qxe5 {[%emt 0:00:26]} Rd8 {[%emt 0:00:16]} 27. Rxd8 {[%emt 0:00:49]} Qxd8 {[%emt 0:00:04]} 28. Qc3 {[%emt 0:02:00]} Qd1 {[%emt 0:00:39]} 29. Qf3 {[%emt 0:02:47]} Qc2 {[%emt 0:00:47]} 30. Qe3 {[%emt 0:00:44]} b6 {[%emt 0:01:39]} 31. b3 {[%emt 0:00:30]} Nc5 {[%emt 0:00:28]} 32. b4 {[%emt 0:00:38]} Ne6 {[%emt 0:00:12]} 33. e5 {[%emt 0:00:33]} Qxc4 {[%emt 0:00:11]} 34. Qf3 {[%emt 0:00:17]} Nd4 {[%emt 0:00:59]} 35. Qg4 {[%emt 0:00:24]} c5 {[%emt 0:00:40]} 36. Qd7 {[%emt 0:00:32]} Qe6 {[%emt 0:00:32]} 37. Qxa7 {[%emt 0:00:37]} Qxe5 {[%emt 0:00:30]} 38. Qxb6 {[%emt 0:00:19]} Nf5 {[%emt 0:00:25]} 39. Qxc5 {[%emt 0:00:26]} Qxg3+ {[%emt 0:00:09]} 40. Kg1 {[%emt 0:00:13]} Ne3 {[%emt 0:00:39]} 41. Qc6 {[%emt 0:31:07]} Nxg2 {[%emt 0:02:54]} 42. Qa8+ {[%emt 0:00:00]} Kh7 {[%emt 0:00:09]} 43. Qxg2 {[%emt 0:00:00]} Qxa3 {[%emt 0:01:18]} 44. Qe4+ {[%emt 0:00:00]} g6 {[%emt 0:02:06]} 45. Qh4+ {[%emt 0:00:00]} Kg7 {[%emt 0:00:32]} 46. Qd4+ {[%emt 0:00:00]} f6 {[%emt 0:01:36]} 47. h4 {[%emt 0:00:00]} Qa4 {[%emt 0:06:24]} 48. Kf2 {[%emt 0:00:00]} Qb5 {[%emt 0:01:52]} 49. Qa7+ {[%emt 0:00:00]} Kf8 {[%emt 0:03:18]} 50. Qc5+ {[%emt 0:00:00]} Qxc5+ {[%emt 0:01:46]} 51. bxc5 {[%emt 0:00:00]} Ke7 {[%emt 0:00:03]} 52. Ke3 {[%emt 0:00:00]} Kd7 {[%emt 0:00:37]} 53. Kd3 {[%emt 0:00:00]} 1/2-1/2

[Event "45th FIDE Womens Olympiad 2024"]
[Site "Budapest"]
[Date "2024.09.11"]
[Round "1.4"]
[White "Tania, Sachdev"]
[Black "Watson, Gabriella"]
[Result "1-0"]
[ECO "D18"]
[WhiteElo "2386"]
[BlackElo "1826"]
[Annotator "ChessBase"]
[PlyCount "81"]
[EventDate "2024.09.05"]
[EventType "team-tourn"]
[EventCountry "HUN"]
[SourceTitle "playchess.com"]
[Source "ChessBase"]
[SourceQuality "1"]
[WhiteTeam "India"]
[BlackTeam "Jamaica"]
[WhiteTeamCountry "IND"]
[BlackTeamCountry "JAM"]
[TimeControl "40/5400+30:1800+30"]

1. d4 {[%emt 0:00:20]} d5 {[%emt 0:00:13]} 2. c4 {[%emt 0:00:06]} c6 {[%emt 0:00:06]} 3. Nf3 {[%emt 0:00:09]} Nf6 {[%emt 0:00:12]} 4. Nc3 {[%emt 0:00:07]} dxc4 {[%emt 0:00:16]} 5. a4 {[%emt 0:00:16]} Bf5 {[%emt 0:00:21]} 6. Ne5 {[%emt 0:00:40]} e6 {[%emt 0:01:21]} 7. e3 {[%emt 0:03:05]} Nbd7 {[%emt 0:00:24]} 8. Nxc4 {[%emt 0:01:17]} Bb4 {[%emt 0:02:15]} 9. Be2 {[%emt 0:02:13]} O-O {[%emt 0:02:34]} 10. O-O {[%emt 0:00:37]} a5 {[%emt 0:02:30]} 11. Qb3 {[%emt 0:04:30]} Qc7 {[%emt 0:05:21]} 12. f4 {[%emt 0:13:59]} Nb6 {[%emt 0:10:27]} 13. Ne5 {[%emt 0:05:29]} h6 {[%emt 0:04:36]} 14. Bd2 {[%emt 0:05:21]} Bxc3 {[%emt 0:05:46]} 15. bxc3 {[%emt 0:01:22]} Ne4 {[%emt 0:01:44]} 16. Be1 {[%emt 0:06:50]} Nd5 {[%emt 0:03:26]} 17. c4 {[%emt 0:01:55]} Ne7 {[%emt 0:03:14]} 18. Bd3 {[%emt 0:08:15]} Rfd8 {[%emt 0:08:58]} 19. g4 {[%emt 0:08:41]} Bh7 {[%emt 0:01:32]} 20. Qc2 {[%emt 0:06:04]} f5 {[%emt 0:11:19]} 21. gxf5 {[%emt 0:04:49]} exf5 {[%emt 0:00:38]} 22. Kh1 {[%emt 0:00:30]} Re8 {[%emt 0:10:12]} 23. Rg1 {[%emt 0:01:55]} c5 {[%emt 0:03:59]} 24. d5 {[%emt 0:02:05]} Ra6 {[%emt 0:01:45]} 25. Rb1 {[%emt 0:06:16]} Ng6 {[%emt 0:06:29]} 26. Nf3 {[%emt 0:02:35]} Rf6 {[%emt 0:05:02]} 27. Nd2 {[%emt 0:05:58]} Qe7 {[%emt 0:03:06]} 28. Nf1 {[%emt 0:01:36]} b6 {[%emt 0:00:20]} 29. Rb2 {[%emt 0:00:22]} Rd6 {[%emt 0:01:15]} 30. Qb1 {[%emt 0:03:04]} Qc7 {[%emt 0:01:42]} 31. Rbg2 {[%emt 0:00:44]} Re7 {[%emt 0:00:38]} 32. Be2 {[%emt 0:00:50]} Rf6 {[%emt 0:01:23]} 33. Bh5 {[%emt 0:01:14]} Nf8 {[%emt 0:00:42]} 34. Bh4 {[%emt 0:00:28]} g5 {[%emt 0:01:13]} 35. fxg5 {[%emt 0:01:18]} hxg5 {[%emt 0:00:26]} 36. Rxg5+ {[%emt 0:01:31]} Nxg5 {[%emt 0:01:44]} 37. Bxg5 {[%emt 0:00:04]} Rg7 {[%emt 0:01:02]} 38. Bxf6 {[%emt 0:00:18]} Rxg1+ {[%emt 0:00:28]} 39. Kxg1 {[%emt 0:00:02]} Qd6 {[%emt 0:00:33]} 40. Qb2 {[%emt 0:00:18]} Nd7 {[%emt 0:00:24]} 41. Qg2+ {[%emt 0:30:09]} 1-0

[Event "45th FIDE Womens Olympiad 2024"]
[Site "Budapest"]
[Date "2024.09.11"]
[Round "1.5"]
[White "Gaal, Zsoka"]
[Black "Morales Santos, Natasha"]
[Result "1-0"]
[ECO "A37"]
[WhiteElo "2385"]
[BlackElo "1972"]
[Annotator "ChessBase"]
[PlyCount "77"]
[EventDate "2024.09.05"]
[EventType "team-tourn"]
[EventCountry "HUN"]
[SourceTitle "playchess.com"]
[Source "ChessBase"]
[SourceQuality "1"]
[WhiteTeam "Hungary"]
[BlackTeam "Puerto Rico"]
[WhiteTeamCountry "HUN"]
[BlackTeamCountry "PUR"]
[TimeControl "40/5400+30:1800+30"]

1. Nf3 {[%emt 0:00:05]} c5 {[%emt 0:00:11]} 2. c4 {[%emt 0:00:13]} Nc6 {[%emt 0:00:13]} 3. Nc3 {[%emt 0:00:09]} g6 {[%emt 0:00:15]} 4. g3 {[%emt 0:00:13]} Bg7 {[%emt 0:00:31]} 5. Bg2 {[%emt 0:00:10]} e5 {[%emt 0:00:13]} 6. O-O {[%emt 0:00:25]} d6 {[%emt 0:01:28]} 7. a3 {[%emt 0:01:53]} Nge7 {[%emt 0:03:43]} 8. d3 {[%emt 0:04:12]} O-O {[%emt 0:04:18]} 9. Rb1 {[%emt 0:00:15]} f5 {[%emt 0:11:50]} 10. Bd2 {[%emt 0:07:27]} Kh8 {[%emt 0:02:55]} 11. b4 {[%emt 0:01:43]} Rb8 {[%emt 0:10:55]} 12. Qc1 {[%emt 0:11:19]} Be6 {[%emt 0:03:27]} 13. Bh6 {[%emt 0:08:19]} Bxh6 {[%emt 0:18:00]} 14. Qxh6 {[%emt 0:00:09]} Ng8 {[%emt 0:01:12]} 15. Qe3 {[%emt 0:05:41]} Nf6 {[%emt 0:10:17]} 16. bxc5 {[%emt 0:04:49]} Ng4 {[%emt 0:00:22]} 17. Qg5 {[%emt 0:05:05]} dxc5 {[%emt 0:04:00]} 18. Qxd8 {[%emt 0:00:42]} Rfxd8 {[%emt 0:01:44]} 19. Ng5 {[%emt 0:05:14]} Bg8 {[%emt 0:00:42]} 20. Bxc6 {[%emt 0:00:43]} bxc6 {[%emt 0:00:07]} 21. Na4 {[%emt 0:00:23]} h6 {[%emt 0:04:19]} 22. Nh3 {[%emt 0:00:42]} e4 {[%emt 0:02:31]} 23. Nxc5 {[%emt 0:01:56]} exd3 {[%emt 0:03:28]} 24. exd3 {[%emt 0:00:14]} Ne5 {[%emt 0:00:49]} 25. f4 {[%emt 0:05:25]} Nf3+ {[%emt 0:02:33]} 26. Kg2 {[%emt 0:01:44]} Nd4 {[%emt 0:03:37]} 27. Kf2 {[%emt 0:07:35]} Rb6 {[%emt 0:06:13]} 28. Rfc1 {[%emt 0:08:01]} Rdb8 {[%emt 0:02:20]} 29. Rxb6 {[%emt 0:00:22]} Rxb6 {[%emt 0:00:33]} 30. Ke3 {[%emt 0:01:13]} Nb3 {[%emt 0:00:08]} 31. Nxb3 {[%emt 0:00:11]} Rxb3 {[%emt 0:00:01]} 32. Ng1 {[%emt 0:00:15]} Kg7 {[%emt 0:00:35]} 33. Nf3 {[%emt 0:00:26]} Rxa3 {[%emt 0:00:48]} 34. Ne5 {[%emt 0:00:08]} a5 {[%emt 0:01:45]} 35. Nxc6 {[%emt 0:01:06]} a4 {[%emt 0:00:10]} 36. Nd4 {[%emt 0:01:27]} Ra2 {[%emt 0:00:24]} 37. c5 {[%emt 0:00:34]} Rb2 {[%emt 0:01:34]} 38. c6 {[%emt 0:00:08]} Rb8 {[%emt 0:00:16]} 39. c7 {[%emt 0:00:18]} 1-0

[Event "45th FIDE Womens Olympiad 2024"]
[Site "Budapest"]
[Date "2024.09.11"]
[Round "1.5"]
[White "Varela La Madrid, Tilsia Carolina"]
[Black "Lima, Izidora Lourenco"]
[Result "1-0"]
[ECO "C62"]
[WhiteElo "2017"]
[BlackElo "1579"]
[Annotator "NA"]
[PlyCount "103"]
[EventDate "2024.09.05"]
[EventType "team-tourn"]
[EventCountry "HUN"]
[SourceTitle "playchess.com"]
[Source "ChessBase"]
[SourceQuality "1"]
[WhiteTeam "Venezuela"]
[BlackTeam "Sao Tome and Principe"]
[WhiteTeamCountry "VEN"]
[BlackTeamCountry "SAO"]
[TimeControl "40/5400+30:1800+30"]

1. e4 e5 2. Nf3 Nc6 3. Nc3 Nf6 4. Bb5 d6 5. d4 exd4 6. Nxd4 Bd7 7. Bxc6 Bxc6 8. Qd3 Be7 9. Nf5 Rg8 10. f3 Qd7 11. Be3 a6 12. O-O-O O-O-O 13. Qd4 b6 14. Qc4 Kb7 15. Qxf7 Bf8 16. Qb3 g6 17. Nd4 Bg7 18. Ne6 Rde8 19. Nc5+ dxc5 20. Rxd7 Nxd7 21. Nd5 Rgf8 22. Rd1 Be5 23. Bh6 Rh8 24. g3 Bb5 25. f4 c4 26. Qf3 Bd6 27. Bg7 Rhg8 28. Bd4 Rgf8 29. Qh1 Bc6 30. b3 Ba3+ 31. Kb1 cxb3 32. axb3 Bxd5 33. exd5 Re2 34. d6+ Kb8 35. dxc7+ Kxc7 36. Bb2 Bxb2 37. Kxb2 Rfe8 38. Qd5 R8e7 39. Qd6+ Kc8 40. Qc6+ Kd8 41. Qxb6+ Ke8 42. Qxa6 Kf8 43. Rxd7 Rxc2+ 44. Kxc2 Rxd7 45. Qf6+ Kg8 46. Qe6+ Rf7 47. b4 Kg7 48. Qe5+ Kf8 49. b5 Kg8 50. Qe8+ Rf8 51. Qxf8+ Kxf8 52. b6 1-0

[Event "45th FIDE Womens Olympiad 2024"]
[Site "Budapest"]
[Date "2024.09.11"]
[Round "1.6"]
[White "Rivera Negron, Yanira"]
[Black "Terbe, Julianna"]
[Result "0-1"]
[ECO "D31"]
[WhiteElo "1805"]
[BlackElo "2245"]
[Annotator "ChessBase"]
[PlyCount "76"]
[EventDate "2024.09.05"]
[EventType "team-tourn"]
[EventCountry "HUN"]
[SourceTitle "playchess.com"]
[Source "ChessBase"]
[SourceQuality "1"]
[WhiteTeam "Puerto Rico"]
[BlackTeam "Hungary"]
[WhiteTeamCountry "PUR"]
[BlackTeamCountry "HUN"]
[TimeControl "40/5400+30:1800+30"]

1. d4 {[%emt 0:00:07]} d5 {[%emt 0:00:08]} 2. c4 {[%emt 0:00:32]} e6 {[%emt 0:00:13]} 3. Nc3 {[%emt 0:02:18]} c6 {[%emt 0:00:17]} 4. Bf4 {[%emt 0:02:09]} dxc4 {[%emt 0:02:10]} 5. e4 {[%emt 0:03:36]} b5 {[%emt 0:04:04]} 6. a3 {[%emt 0:06:17]} Nf6 {[%emt 0:02:03]} 7. Nf3 {[%emt 0:03:06]} Bb7 {[%emt 0:00:48]} 8. Qc2 {[%emt 0:08:45]} Nbd7 {[%emt 0:05:19]} 9. Rd1 {[%emt 0:07:58]} Qb6 {[%emt 0:03:06]} 10. Ne5 {[%emt 0:08:05]} Nxe5 {[%emt 0:05:38]} 11. Bxe5 {[%emt 0:01:07]} Rd8 {[%emt 0:03:53]} 12. Be2 {[%emt 0:05:54]} Be7 {[%emt 0:01:23]} 13. O-O {[%emt 0:08:26]} O-O {[%emt 0:03:57]} 14. Bf3 {[%emt 0:03:01]} a6 {[%emt 0:06:49]} 15. Rfe1 {[%emt 0:02:18]} Rd7 {[%emt 0:10:58]} 16. Rd2 {[%emt 0:03:37]} Rfd8 {[%emt 0:02:10]} 17. Red1 {[%emt 0:04:54]} Ne8 {[%emt 0:05:38]} 18. d5 {[%emt 0:04:40]} Bg5 {[%emt 0:03:56]} 19. Bd4 {[%emt 0:07:12]} c5 {[%emt 0:05:55]} 20. Be3 {[%emt 0:02:04]} Bxe3 {[%emt 0:00:07]} 21. fxe3 {[%emt 0:00:23]} e5 {[%emt 0:07:11]} 22. Rf2 {[%emt 0:05:39]} Nd6 {[%emt 0:02:19]} 23. Be2 {[%emt 0:04:39]} b4 {[%emt 0:04:40]} 24. Na4 {[%emt 0:02:21]} Qa5 {[%emt 0:01:20]} 25. axb4 {[%emt 0:01:31]} cxb4 {[%emt 0:00:06]} 26. Ra1 {[%emt 0:00:12]} Rc7 {[%emt 0:03:08]} 27. Rff1 {[%emt 0:01:01]} Bc8 {[%emt 0:03:27]} 28. Qb1 {[%emt 0:01:09]} Bd7 {[%emt 0:01:27]} 29. b3 {[%emt 0:00:31]} cxb3 {[%emt 0:03:20]} 30. Qxb3 {[%emt 0:00:40]} Nxe4 {[%emt 0:01:11]} 31. Nb2 {[%emt 0:01:08]} Qc5 {[%emt 0:01:56]} 32. Nd3 {[%emt 0:00:35]} Qxe3+ {[%emt 0:00:22]} 33. Kh1 {[%emt 0:00:28]} Qxe2 {[%emt 0:02:43]} 34. Rae1 {[%emt 0:00:23]} Rc3 {[%emt 0:01:50]} 35. Rxe2 {[%emt 0:00:43]} Rxb3 {[%emt 0:00:05]} 36. Nc1 {[%emt 0:00:20]} Nc3 {[%emt 0:00:20]} 37. Rxe5 {[%emt 0:00:28]} Rb1 {[%emt 0:00:07]} 38. Re7 {[%emt 0:00:37]} Na2 {[%emt 0:01:00]} 0-1